bitfinex-derivatives/quotes_ETHF0:USTF0_20250530
["timestamp","ask_amount","ask_price","bid_price","bid_amount"]
[1748567170911,3.2078,2589.5,2589.2,0.00579721]
[1748567171304,3.2078,2589.8,2589.2,0.00579721]
[1748567171504,3.2078,2589.5,2589.2,0.00579721]
[1748567171907,1.6106,2589.4,2589.2,0.00579721]
[1748567172709,3.2078,2589.8,2589.2,0.00579721]
[1748567172914,1.6106,2589.7,2589.2,0.00579721]
[1748567173209,3.2078,2589.5,2589.2,0.00579721]
[1748567173414,1.6106,2589.4,2588.4,3.2078]
[1748567173614,3.2078,2589.1,2588.4,3.2078]
[1748567173806,3.2078,2588.5,2587.8,4.9205]
[1748567174005,1.7192,2588.4,2587.8,4.9205]
[1748567174203,3.2078,2588.0,2587.5,3.2078]
[1748567174406,3.2078,2588.0,2587.5,3.21359721]
[1748567174407,1.7192,2587.9,2587.5,3.21359721]
[1748567175411,3.2078,2587.6,2586.3,3.2078]
[1748567175710,0.00579721,2588.0,2586.3,3.2078]
[1748567175711,3.2078,2587.0,2586.3,3.2078]
[1748567175905,1.7192,2586.9,2586.3,3.2078]
[1748567176600,1.7192,2586.9,2586.3,3.21359721]
[1748567177209,1.7192,2586.9,2586.5,3.2078]
[1748567177406,3.2078,2586.6,2586.3,0.00579721]
[1748567177604,1.6372,2586.5,2586.3,0.00579721]
[1748567178007,6.6372,2586.5,2586.3,0.00579721]
[1748567178217,4.845,2586.5,2586.3,0.00579721]
[1748567178720,1.07478628,2586.4,2585.3,3.2078]
[1748567179021,3.2078,2585.6,2584.9,1.6763]
[1748567179314,1.6372,2585.5,2585.0,0.07736943]
[1748567179715,1.6372,2585.5,2585.0,0.08316664]
[1748567179911,3.2078,2585.4,2585.0,0.08316664]
[1748567180114,1.5799,2585.3,2585.0,0.08316664]
[1748567180414,4.7877,2585.3,2585.0,0.08316664]
[1748567180616,1.5799,2585.3,2585.0,0.08316664]
[1748567180817,3.2078,2585.2,2585.1,1.6607]
[1748567181005,3.2078,2585.9,2585.1,1.6607]
[1748567181208,1.5799,2585.8,2585.2,3.2078]
[1748567181916,3.2078,2585.9,2585.5,3.2078]
[1748567182120,3.2078,2585.9,2585.6,1.6607]
[1748567182312,1.5799,2586.3,2585.6,1.6607]
[1748567182313,1.5799,2586.3,2585.8,3.2078]
[1748567182510,0.05265529,2586.1,2585.5,3.2078]
[1748567183016,0.05265529,2586.1,2585.6,1.6746]
[1748567183518,3.2078,2587.1,2585.9,3.2078]
[1748567183713,3.2078,2588.0,2586.6,3.2078]
[1748567183913,2.74742214,2587.9,2586.9,3.2078]
[1748567184118,1.6713,2587.9,2587.2,3.2078]
[1748567184415,1.6713,2587.9,2587.3,1.6746]
[1748567184416,3.2078,2587.7,2587.3,1.6746]
[1748567184810,1.6713,2587.6,2587.3,1.6746]
[1748567185013,1.6713,2587.6,2587.2,0.00579721]
[1748567185618,0.00579721,2587.8,2587.3,3.2078]
[1748567186214,3.2078,2587.4,2587.2,0.00579721]
[1748567186412,3.2078,2587.4,2586.4,3.2078]
[1748567186413,1.6664,2587.3,2586.4,3.2078]
[1748567186611,3.2078,2587.1,2586.4,3.2078]
[1748567186823,3.2078,2586.8,2585.9,4.948]
[1748567187016,1.6664,2586.7,2585.9,4.948]
[1748567187516,3.2078,2586.5,2586.0,0.00579721]
[1748567187712,1.6664,2586.4,2586.0,0.00579721]
[1748567187911,1.6664,2586.4,2586.0,1.74599721]
[1748567188718,1.6664,2586.4,2586.0,0.00579721]
[1748567189112,3.2078,2586.2,2586.0,0.00579721]
[1748567189311,1.6246,2586.1,2586.0,0.00579721]
[1748567189917,6.6246,2586.1,2586.0,0.00579721]
[1748567190116,1.6246,2586.1,2586.0,0.00579721]
[1748567190519,3.2078,2586.3,2586.0,0.00579721]
[1748567190714,0.00579721,2586.5,2586.0,1.57819721]
[1748567191827,3.21359721,2586.5,2586.0,0.00579721]
[1748567192123,1.6151,2586.4,2586.0,0.00579721]
[1748567192512,3.2078,2586.2,2586.0,0.00579721]
[1748567192721,1.6151,2586.1,2586.0,0.00579721]
[1748567193814,3.2078,2586.2,2586.0,0.00579721]
[1748567194015,3.2078,2586.1,2586.0,0.00579721]
[1748567194223,1.6151,2586.4,2586.0,0.00579721]
[1748567194412,4.8229,2586.4,2586.0,0.00579721]
[1748567194620,3.2078,2586.1,2586.0,0.00579721]
[1748567195116,8.2078,2586.1,2586.0,0.00579721]
[1748567195522,3.2078,2586.1,2586.0,0.00579721]
[1748567195725,8.2078,2586.1,2586.0,0.00579721]
[1748567196420,3.2078,2586.1,2586.0,0.00579721]
[1748567197212,4.2798264,2586.1,2586.0,0.00579721]
[1748567197822,3.2078,2586.1,2586.0,0.00579721]
[1748567199731,3.2078,2586.4,2586.0,0.00579721]
[1748567200230,3.2078,2586.4,2586.0,1.68799721]
[1748567201023,0.00579721,2586.5,2586.0,1.68799721]
[1748567201024,0.00579721,2586.5,2586.0,4.89579721]
[1748567201528,3.2078,2586.2,2586.0,1.68799721]
[1748567201730,1.6237,2586.1,2586.0,0.00579721]
[1748567201920,3.2078,2586.2,2586.0,0.00579721]
[1748567202928,1.6237,2586.1,2586.0,0.00579721]
[1748567203126,0.05265529,2586.1,2586.0,0.00579721]
[1748567204523,0.05265529,2586.1,2586.0,3.21359721]
[1748567204819,0.05265529,2586.1,2586.0,0.00579721]
[1748567206022,0.05265529,2586.1,2586.0,5.00579721]
[1748567207828,0.00579721,2586.5,2586.0,5.00579721]
[1748567208024,3.2078,2587.2,2586.4,3.2078]
[1748567209028,0.00579721,2587.1,2587.0,3.2078]
[1748567209332,3.2078,2588.3,2587.0,3.2078]
[1748567209525,3.2078,2588.3,2587.4,3.2078]
[1748567210126,0.00579721,2588.1,2587.6,0.00579721]
[1748567210919,3.2078,2588.6,2588.0,3.2078]
[1748567211136,3.2078,2588.6,2587.7,3.2078]
[1748567212423,3.2078,2587.9,2587.6,0.00579721]
[1748567212625,1.6573,2587.8,2587.6,0.00579721]
[1748567213431,3.2078,2587.9,2587.6,0.00579721]
[1748567213637,1.7022,2588.3,2587.6,0.00579721]
[1748567213825,3.2078,2588.4,2587.6,0.00579721]
[1748567214030,3.2078,2588.1,2587.6,0.00579721]
[1748567214930,1.7022,2588.0,2587.6,0.00579721]
[1748567215735,3.2078,2588.1,2587.6,0.00579721]
[1748567215943,3.2078,2588.1,2587.7,3.2078]
[1748567216237,3.2078,2588.3,2587.7,3.2078]
[1748567216431,3.2078,2588.1,2587.6,0.00579721]
[1748567217132,3.2078,2588.5,2587.6,0.00579721]
[1748567217730,3.2078,2588.6,2587.6,0.00579721]
[1748567217929,3.2078,2588.3,2587.6,0.00579721]
[1748567218129,3.2078,2588.2,2587.6,0.00579721]
[1748567218335,3.2078,2587.9,2587.6,0.00579721]
[1748567218930,3.2078,2588.4,2587.6,0.00579721]
[1748567219142,29.2877,2589.2,2587.6,0.00579721]
[1748567219143,3.2078,2588.1,2587.6,0.00579721]
[1748567219428,3.2078,2587.8,2587.6,0.00579721]
[1748567219635,3.2078,2588.2,2587.6,0.00579721]
[1748567220736,3.2078,2587.9,2587.6,0.00579721]
[1748567220940,3.2078,2588.2,2587.6,3.21359721]
[1748567221129,9.6298,2588.5,2587.6,3.21359721]
[1748567221429,3.2078,2588.5,2587.6,3.21359721]
[1748567221637,3.2078,2588.2,2587.6,3.21359721]
[1748567222033,1.5937,2588.4,2587.6,0.00579721]
[1748567222432,3.2078,2588.3,2587.6,0.00579721]
[1748567222636,3.2078,2588.0,2587.6,0.00579721]
[1748567222935,3.2078,2587.7,2587.6,0.00579721]
[1748567225440,1.669,2587.9,2587.6,0.00579721]
[1748567225942,3.2078,2587.7,2587.6,0.00579721]
[1748567226245,1.669,2587.9,2587.6,0.00579721]
[1748567226430,3.2078,2587.7,2587.6,0.00579721]
[1748567228144,1.669,2587.9,2587.6,0.00579721]
[1748567229037,4.7884,2588.3,2587.6,0.00579721]
[1748567229240,3.2078,2588.6,2587.8,3.2078]
[1748567229543,1.6437,2588.6,2587.9,1.6005]
[1748567229944,3.2078,2588.9,2587.9,1.6005]
[1748567230141,3.2078,2588.9,2588.1,3.2078]
[1748567230341,3.2078,2588.6,2587.7,4.8569]
[1748567230538,3.2078,2588.1,2587.6,0.00579721]
[1748567230739,1.6437,2588.0,2587.6,0.00579721]
[1748567231035,3.2078,2588.4,2587.7,3.2078]
[1748567231234,3.2078,2588.9,2588.0,3.2078]
[1748567231436,3.2078,2588.9,2588.1,1.6005]
[1748567231637,4.8515,2589.2,2588.5,3.2078]
[1748567231847,4.8515,2589.2,2588.6,1.5874]
[1748567232050,3.2078,2589.5,2588.8,3.2078]
[1748567232243,3.2078,2589.5,2588.9,1.5874]
[1748567232439,3.2078,2589.2,2588.9,0.00579721]
[1748567232745,1.6051,2589.1,2588.9,0.00579721]
[1748567233846,3.2078,2589.2,2588.9,0.00579721]
[1748567234440,3.2078,2589.8,2588.9,3.21359721]
[1748567234952,3.2078,2589.5,2588.9,3.21359721]
[1748567235146,1.6177,2589.4,2588.9,3.21359721]
[1748567235356,3.2078,2589.8,2589.0,1.6197]
[1748567235841,3.2078,2589.8,2589.2,3.2078]
[1748567236151,3.2078,2590.2,2589.5,3.2078]
[1748567236454,3.2078,2590.6,2590.0,3.2078]
[1748567236647,3.2078,2590.6,2590.1,1.6197]
[1748567236852,1.6496,2591.5,2590.1,1.6197]
[1748567236853,3.2078,2591.0,2590.5,3.2078]
[1748567237144,3.2611,2591.5,2590.8,3.2078]
[1748567237145,3.2078,2591.3,2590.8,3.2078]
[1748567237353,1.6177,2591.2,2590.8,3.2078]
[1748567237553,3.2078,2591.0,2590.5,0.00579721]
[1748567237751,3.2078,2590.6,2590.5,0.00579721]
[1748567238259,8.2078,2590.6,2590.5,0.00579721]
[1748567238654,3.2078,2590.6,2590.5,0.00579721]
[1748567239555,8.2078,2590.6,2590.5,0.00579721]
[1748567239854,8.2078,2590.6,2589.7,1.6737]
[1748567240054,8.2078,2590.6,2589.3,3.2078]
[1748567240055,3.2078,2590.1,2589.4,1.6737]
[1748567240249,3.2078,2590.1,2589.6,3.2078]
[1748567240458,3.2078,2590.1,2589.2,1.592]
[1748567240663,3.2078,2590.1,2589.3,4.8815]
[1748567240858,0.00579721,2590.0,2589.6,3.2078]
[1748567241153,0.00579721,2590.0,2589.7,1.6306]
[1748567242154,0.00579721,2590.0,2589.4,0.00579721]
[1748567242155,3.21359721,2590.0,2589.4,0.00579721]
[1748567242350,1.6374,2589.9,2589.5,1.6306]
[1748567242552,3.2078,2589.7,2589.5,1.6306]
[1748567242754,3.2078,2589.7,2589.4,0.00579721]
[1748567242960,1.6374,2589.6,2589.4,0.00579721]
[1748567243157,3.2078,2589.7,2589.4,0.00579721]
[1748567244047,0.00579721,2590.0,2589.5,3.2078]
[1748567244250,0.00579721,2590.0,2589.8,3.2078]
[1748567244455,0.00579721,2590.0,2589.9,1.7415]
[1748567244956,0.00579721,2590.0,2589.9,6.7415]
[1748567245353,3.2078,2590.9,2589.9,6.7415]
[1748567245558,3.2078,2590.9,2590.3,3.2078]
[1748567245765,3.2078,2590.6,2589.5,1.7202]
[1748567245953,3.2078,2589.6,2589.4,0.00579721]
[1748567246151,3.2078,2590.1,2589.4,0.00579721]
[1748567246355,1.732,2590.0,2589.4,0.00579721]
[1748567246659,3.2078,2589.5,2589.4,0.00579721]
[1748567247758,9.30627891,2589.5,2589.4,0.00579721]
[1748567248258,9.30627891,2589.5,2588.5,3.2078]
[1748567248463,2.72727891,2589.4,2588.5,3.2078]
[1748567248756,1.6288,2589.4,2588.6,1.737]
[1748567248956,1.6288,2589.4,2588.8,3.2078]
[1748567249267,3.2078,2589.6,2589.2,3.2078]
[1748567249558,0.00579721,2589.7,2589.3,1.737]
[1748567249759,0.00579721,2589.7,2589.5,3.2078]
[1748567249957,0.00579721,2589.7,2589.6,1.5709]
[1748567250457,0.00579721,2589.7,2589.6,6.5709]
[1748567250652,0.00579721,2589.7,2589.6,1.5709]
[1748567251055,0.00579721,2589.7,2589.6,6.5709]
[1748567251458,3.2078,2590.6,2589.6,6.5709]
[1748567251658,3.2078,2590.2,2589.6,1.5709]
[1748567251860,4.9378,2590.5,2589.7,3.2078]
[1748567252255,6.422,2591.9,2590.1,3.2078]
[1748567252458,1.73,2591.3,2590.7,3.2078]
[1748567252662,1.73,2591.3,2590.8,1.5709]
[1748567253061,3.2078,2591.1,2590.8,1.5709]
[1748567253667,3.2078,2591.1,2590.7,0.00579721]
[1748567253970,3.2078,2590.8,2589.7,3.2078]
[1748567254165,1.0996683,2591.0,2589.7,3.2078]
[1748567254363,3.2078,2591.0,2590.4,3.2078]
[1748567254669,3.2078,2591.3,2590.1,3.2078]
[1748567254967,0.05265529,2590.7,2590.4,0.00579721]
[1748567255868,1.6782,2590.6,2590.4,0.00579721]
[1748567256166,0.05265529,2590.5,2590.4,0.00579721]
[1748567257264,0.05265529,2590.5,2590.4,6.77439721]
[1748567258864,0.05265529,2590.5,2590.4,1.77439721]
[1748567259167,0.05265529,2590.5,2590.4,0.00579721]
[1748567261073,0.05265529,2590.5,2589.6,3.2078]
[1748567261074,5.05265529,2590.5,2589.6,3.2078]
[1748567261274,3.2078,2590.2,2589.6,3.2078]
[1748567261572,1.7595,2590.4,2589.6,3.2078]
[1748567262068,0.05265529,2590.0,2589.9,3.2078]
[1748567262268,3.2078,2590.9,2589.9,3.2078]
[1748567262467,0.00579721,2591.0,2590.6,3.2078]
[1748567262664,0.00579721,2591.0,2590.7,1.6659]
[1748567267271,3.2078,2590.8,2589.9,10.685]
[1748567267481,1.7492,2590.7,2589.9,10.685]
[1748567267680,3.2078,2590.5,2589.9,10.685]
[1748567267881,1.7492,2590.4,2589.9,10.685]
[1748567268174,1.7492,2590.4,2590.0,1.6621]
[1748567269375,3.2078,2590.8,2590.0,1.6621]
[1748567269582,3.2078,2590.5,2589.7,3.21359721]
[1748567269777,1.6351,2590.4,2589.8,1.6621]
[1748567270879,3.2078,2590.5,2589.8,1.6621]
[1748567271872,3.2078,2590.5,2590.0,3.2078]
[1748567272073,0.00579721,2591.0,2590.3,3.2078]
[1748567272379,3.2078,2590.9,2589.9,3.2078]
[1748567272575,1.7137,2590.8,2589.9,3.2078]
[1748567272775,1.7137,2590.8,2590.0,1.6907]
[1748567273197,3.2078,2590.4,2589.9,3.2078]
[1748567273379,1.7137,2590.3,2589.7,0.00579721]
[1748567273780,3.2078,2590.7,2589.8,3.2078]
[1748567273978,1.7137,2590.6,2589.9,1.6907]
[1748567274283,0.00579721,2591.0,2590.3,3.2078]
[1748567274588,0.00579721,2591.0,2590.6,3.2078]
[1748567274787,0.00579721,2591.0,2590.7,1.7421]
[1748567279398,3.21359721,2591.0,2590.1,3.2078]
[1748567279693,1.6082,2590.9,2590.2,1.7177]
[1748567280084,3.21359721,2591.0,2590.5,3.2078]
[1748567280288,3.21359721,2591.0,2590.6,1.7638]
[1748567280492,0.00579721,2591.0,2590.6,1.7638]
[1748567281293,0.00579721,2591.0,2590.9,3.2078]
[1748567281691,3.2078,2591.9,2590.9,9.9716]
[1748567281992,3.2078,2591.9,2591.3,3.2078]
[1748567282295,3.2078,2591.9,2591.4,1.7638]
[1748567282490,3.2078,2591.6,2591.0,1.7638]
[1748567282793,0.00579721,2591.6,2591.0,1.76959721]
[1748567283600,0.00579721,2591.6,2591.0,4.97739721]
[1748567283903,0.00579721,2591.6,2591.1,3.2078]
[1748567284198,0.00579721,2591.6,2591.2,1.6416]
[1748567285896,0.00579721,2591.6,2591.2,3.3948]
[1748567286392,0.00579721,2591.6,2591.3,1.6628]
[1748567290703,3.21359721,2591.6,2591.2,3.2078]
[1748567291493,0.00579721,2591.6,2591.3,1.6392]
[1748567293705,0.00579721,2591.6,2591.3,12.0802]
[1748567294305,0.00579721,2591.6,2591.5,3.2078]
[1748567296804,0.00579721,2591.6,2591.3,1.6392]
[1748567297906,3.2078,2592.6,2591.5,3.2078]
[1748567298299,3.2078,2592.4,2591.8,3.2078]
[1748567298500,1.6269,2592.3,2591.6,1.6105]
[1748567299203,3.2078,2592.1,2591.6,1.6105]
[1748567299505,3.2078,2592.5,2591.6,1.6105]
[1748567299905,1.6269,2592.4,2591.6,1.6105]
[1748567301807,1.6269,2592.4,2591.8,3.2078]
[1748567302506,1.6269,2592.4,2591.9,1.7133]
[1748567302700,3.2078,2592.2,2591.9,1.7133]
[1748567302901,1.7304,2592.1,2591.9,1.7133]
[1748567303298,1.7304,2592.1,2591.8,3.2078]
[1748567304004,1.7304,2592.1,2591.9,1.7133]
[1748567304910,1.7304,2592.1,2591.8,3.2078]
[1748567305905,1.7304,2592.1,2591.9,1.7426]
[1748567306302,1.7304,2592.1,2591.8,3.2078]
[1748567307413,3.2078,2592.5,2591.8,3.2078]
[1748567307611,1.7265,2592.4,2591.8,3.2078]
[1748567307912,1.7265,2592.4,2591.9,1.6683]
[1748567309201,1.10768995,2592.3,2591.9,1.6683]
[1748567309510,1.7265,2592.2,2591.9,1.6683]
[1748567310011,4.9343,2592.2,2591.9,1.6683]
[1748567310210,4.9343,2592.2,2591.8,3.2078]
[1748567310608,1.7265,2592.2,2591.9,1.7476]
[1748567311412,3.2078,2592.0,2591.0,0.00579721]
[1748567311608,13.1485,2592.2,2591.0,0.00579721]
[1748567311609,3.2078,2591.3,2591.0,0.00579721]
[1748567311914,3.2078,2591.6,2591.0,0.00579721]
[1748567312109,2.82559994,2591.5,2591.0,1.75339721]
[1748567312306,1.7186,2591.5,2591.0,1.75339721]
[1748567312811,4.918,2591.9,2591.2,3.2078]
[1748567313013,1.10713209,2591.8,2591.3,1.7476]
[1748567313212,3.2078,2591.9,2591.3,1.7476]
[1748567313412,2.82581203,2591.8,2591.3,1.7476]
[1748567313616,1.10721203,2591.7,2591.3,1.7476]
[1748567313813,1.6556,2591.7,2591.3,1.7476]
[1748567314018,3.2078,2591.9,2591.3,1.7476]
[1748567314417,2.76295031,2591.8,2591.3,1.7476]
[1748567314618,1.6556,2591.8,2591.2,3.2078]
[1748567314819,1.6556,2591.8,2591.3,1.742]
[1748567315315,0.1916,2592.1,2591.5,3.2078]
[1748567315511,0.1916,2592.1,2591.3,1.742]
[1748567315512,1.10738935,2592.0,2591.6,1.742]
[1748567315714,1.6556,2592.0,2591.6,1.742]
[1748567316722,1.6556,2592.0,2591.2,13.3968]
[1748567316910,3.2078,2591.9,2591.3,1.7487]
[1748567317118,1.6929,2591.8,2591.3,1.7487]
[1748567317913,3.2078,2591.6,2591.0,0.00579721]
[1748567318115,3.2078,2591.9,2591.1,1.7487]
[1748567318321,0.1916,2592.1,2591.8,3.2078]
[1748567318520,0.1916,2592.1,2591.9,1.7487]
[1748567319124,0.1916,2592.1,2591.5,3.2078]
[1748567319322,0.1916,2592.1,2591.6,1.7487]
[1748567319821,0.1916,2592.1,2591.5,3.2078]
[1748567320022,6.07199382,2592.0,2591.1,4.8197]
[1748567320219,1.10759382,2591.9,2591.1,4.8197]
[1748567320419,1.7566,2591.8,2591.1,4.8197]
[1748567323127,1.7566,2591.8,2591.1,3.2078]
[1748567323329,1.7566,2591.8,2591.2,1.6929]
[1748567323624,3.2078,2592.0,2591.2,1.6929]
[1748567323825,1.6805,2591.9,2591.2,1.6929]
[1748567324024,0.1916,2592.1,2591.6,3.2078]
[1748567324220,0.1916,2592.1,2591.7,1.6929]
[1748567324716,3.2078,2592.3,2591.7,1.6929]
[1748567324918,1.6805,2592.2,2591.7,1.6929]
[1748567325924,1.6805,2592.2,2591.3,3.2078]
[1748567326118,3.2078,2592.0,2591.4,1.7367]
[1748567326315,3.2078,2591.7,2591.0,3.21359721]
[1748567326520,16.612,2592.5,2591.0,3.21359721]
[1748567326521,1.622,2591.6,2591.1,1.7367]
[1748567327225,0.1929,2591.5,2591.1,1.7367]
[1748567327927,3.4007,2591.5,2591.1,1.7367]
[1748567329721,0.1929,2591.5,2591.1,1.7367]
[1748567330027,0.1929,2591.5,2591.3,3.2078]
[1748567330223,0.1929,2591.5,2591.4,1.6582]
[1748567330425,0.1929,2591.5,2591.4,3.4317]
[1748567331330,4.9924,2592.4,2591.4,8.4317]
[1748567331523,4.9924,2592.4,2591.8,3.2078]
[1748567331725,4.9924,2592.4,2591.9,1.6582]
[1748567333332,0.1918,2592.3,2591.9,1.6582]
[1748567333527,1.6784,2592.2,2591.9,1.6582]
[1748567334031,0.1918,2592.3,2591.9,1.6582]
[1748567334930,0.29176234,2593.2,2592.2,3.2078]
[1748567335140,1.768,2593.5,2593.1,3.2078]
[1748567335328,1.768,2593.5,2593.2,1.7542]
[1748567335525,3.2078,2593.8,2593.2,1.7542]
[1748567335724,4.9758,2593.8,2593.2,1.7542]
[1748567335926,4.9758,2593.8,2593.5,3.2078]
[1748567335927,1.768,2593.8,2593.5,3.2078]
[1748567336127,10.19,2594.7,2593.5,3.2078]
[1748567336128,3.2078,2594.4,2593.5,3.2078]
[1748567336333,3.2078,2594.4,2593.7,0.00578592]
[1748567336639,1.768,2594.3,2593.7,0.00578592]
[1748567336935,3.2078,2594.4,2593.8,3.2078]
[1748567337137,3.2078,2594.4,2593.9,1.7542]
[1748567337431,3.2078,2594.7,2593.9,1.7542]
[1748567337628,3.2078,2595.0,2594.4,3.2078]
[1748567337931,4.9758,2595.0,2594.5,1.7542]
[1748567338136,3.2078,2595.3,2594.7,3.2078]
[1748567338336,3.2078,2595.3,2594.8,1.667]
[1748567338735,1.93600513,2595.7,2594.8,1.667]
[1748567338736,1.6394,2595.7,2595.2,3.2078]
[1748567339038,26.449,2596.8,2595.5,3.2078]
[1748567339039,0.29642816,2596.7,2595.5,3.2078]
[1748567339236,0.29642816,2596.7,2595.3,1.667]
[1748567339237,3.2078,2596.5,2595.8,3.2078]
[1748567339425,3.2078,2596.5,2595.6,1.667]
[1748567339625,3.2078,2596.5,2595.8,3.2078]
[1748567340233,3.2078,2596.5,2595.9,1.667]
[1748567340433,4.8472,2596.8,2595.9,1.667]
[1748567340635,3.2078,2596.5,2595.8,3.2078]
[1748567340843,3.2078,2596.1,2595.4,4.8748]
[1748567341039,3.2078,2596.8,2595.7,3.2078]
[1748567341331,3.2078,2596.8,2595.8,1.6924]
[1748567341533,3.2078,2597.1,2596.3,3.2078]
[1748567341839,3.2078,2597.4,2596.6,3.2078]
[1748567342037,4.936,2597.4,2596.7,1.6924]
[1748567342246,3.2078,2597.8,2597.1,3.2078]
[1748567342435,3.2078,2597.8,2597.2,1.6924]
[1748567342739,1.7282,2597.7,2597.2,1.6924]
[1748567343540,1.6186,2598.1,2597.4,3.2078]
[1748567343733,1.7282,2598.0,2597.5,1.6924]
[1748567343934,3.2078,2597.9,2597.5,1.6924]
[1748567344128,1.7254,2597.8,2597.4,3.2078]
[1748567344333,65.256,2599.2,2597.1,9.935]
[1748567344334,38.874,2599.2,2597.5,3.2078]
[1748567344639,3.2078,2598.4,2598.1,0.00577456]
[1748567344839,1.7254,2598.3,2598.1,0.00577456]
[1748567346441,6.7254,2598.3,2597.1,3.2078]
[1748567346745,4.9416,2598.2,2597.0,4.8933]
[1748567346933,3.2078,2597.9,2597.0,4.8933]
[1748567347137,1.65,2597.8,2597.0,1.6855]
[1748567347340,4.8578,2597.8,2597.0,1.6855]
[1748567347537,3.2078,2597.4,2597.1,0.00577456]
[1748567347738,1.65,2597.3,2597.1,0.00577456]
[1748567349040,6.65,2597.3,2597.1,0.00577456]
[1748567349432,6.65,2597.3,2595.1,26.6108553]
[1748567349433,9.9144,2597.3,2595.7,3.2078]
[1748567349632,9.9144,2597.3,2595.7,4.9858]
[1748567349633,3.2078,2596.4,2595.7,4.9858]
[1748567350440,0.00577456,2596.3,2595.8,0.00577456]
[1748567350743,3.2078,2596.1,2595.8,0.00577456]
[1748567352332,8.2078,2596.1,2595.8,0.00577456]
[1748567352536,1.6252,2596.0,2595.8,0.00577456]
[1748567353039,1.6252,2596.0,2594.7,3.2078]
[1748567353236,3.2078,2595.5,2595.2,1.7352]
[1748567353443,3.2078,2596.2,2595.4,3.2078]
[1748567353737,3.2078,2596.2,2595.5,1.7352]
[1748567353941,1.6161,2596.1,2595.6,0.00577456]
[1748567354137,3.2078,2595.9,2595.6,0.00577456]
[1748567354334,3.2078,2596.2,2595.6,0.00577456]
[1748567354534,3.604688,2599.7,2595.6,0.00577456]
[1748567354535,3.2078,2597.0,2596.1,3.2078]
[1748567354740,4.8239,2597.3,2596.7,3.2078]
[1748567354937,3.2078,2597.3,2596.7,3.2078]
[1748567355135,3.2078,2597.3,2596.2,1.7352]
[1748567355136,3.2078,2597.7,2597.1,3.2078]
[1748567355335,1.6161,2597.6,2597.1,3.2078]
[1748567355542,1.62187456,2597.6,2597.1,0.00577456]
[1748567355943,1.62187456,2597.6,2597.2,3.2078]
[1748567356340,1.62187456,2597.6,2597.1,0.00577456]
[1748567356643,0.00577456,2597.6,2597.1,3.21357456]
[1748567356845,1.78877456,2597.6,2597.2,1.6645]
[1748567357147,0.00577456,2597.6,2597.4,3.2078]
[1748567357334,0.00577456,2597.6,2597.2,1.6645]
[1748567358543,0.00577456,2597.6,2597.4,3.2078]
[1748567358742,0.00577456,2597.6,2597.1,3.21357456]
[1748567358943,0.00577456,2597.6,2597.4,3.2078]
[1748567359142,0.00577456,2597.6,2597.5,1.6645]
[1748567361447,0.00577456,2597.6,2597.1,0.00577456]
[1748567361448,0.00577456,2597.6,2597.1,3.21357456]
[1748567361651,3.2078,2597.5,2597.1,3.21357456]
[1748567361847,0.00577456,2597.6,2597.1,3.21357456]
[1748567362045,0.00577456,2597.6,2597.2,1.7127]
[1748567362442,0.00577456,2597.6,2597.4,3.2078]
[1748567362652,0.00577456,2597.6,2597.5,1.7749]
[1748567363649,0.00577456,2597.6,2597.1,0.00577456]
[1748567363853,0.00577456,2597.6,2597.1,1.78067456]
[1748567364848,0.00577456,2597.6,2597.1,0.00577456]
[1748567365050,0.00577456,2597.6,2596.8,3.2813]
[1748567365051,3.2078,2597.2,2595.8,3.2078]
[1748567365350,3.2078,2597.2,2595.1,5.2673]
[1748567365351,3.2078,2596.1,2595.7,1.7433]
[1748567365551,2.81937114,2596.0,2595.4,3.2078]
[1748567365750,2.81937114,2596.0,2595.2,1.7433]
[1748567365946,3.2078,2595.8,2595.1,3.2078]
[1748567366142,0.05261145,2595.6,2595.4,3.2078]
[1748567366344,0.05261145,2595.6,2595.3,3.21357456]
[1748567366551,0.05261145,2595.6,2595.4,1.7433]
[1748567367057,0.05261145,2595.5,2595.4,1.7433]
[1748567370050,1.15547813,2595.5,2595.4,1.7433]
[1748567370749,0.05261145,2595.5,2595.4,4.9511]
[1748567372654,0.05261145,2595.5,2595.4,1.7433]
[1748567373851,0.05261145,2595.5,2595.4,4.9511]
[1748567374462,0.00577456,2595.9,2595.4,3.2078]
[1748567374756,3.2078,2595.7,2595.3,0.00577456]
[1748567374951,2.70853382,2595.6,2595.3,0.00577456]
[1748567375147,1.10203382,2595.5,2595.3,0.00577456]
[1748567375351,1.10203382,2595.4,2595.3,0.00577456]
[1748567376258,6.10203382,2595.4,2595.3,0.00577456]
[1748567376459,9.30983382,2595.4,2595.0,10.0]
[1748567376654,3.2078,2595.1,2594.3,3.2078]
[1748567376855,2.70853382,2595.0,2594.3,3.2078]
[1748567377055,1.10203382,2594.9,2594.3,3.2078]
[1748567377250,2.70853382,2594.8,2594.3,3.2078]
[1748567377463,1.10203382,2594.7,2594.3,0.00577456]
[1748567377757,2.72483382,2594.6,2594.3,0.00577456]
[1748567378060,1.10203382,2594.5,2594.3,0.00577456]
[1748567378260,1.10203382,2594.4,2594.3,0.00577456]
[1748567378649,1.6228,2594.6,2594.3,0.00577456]
[1748567378862,1.1000222,2594.5,2594.3,0.00577456]
[1748567379156,1.6228,2594.6,2594.3,0.00577456]
[1748567379357,1.6228,2594.4,2594.3,0.00577456]
[1748567381566,6.6228,2594.4,2594.3,0.00577456]
[1748567381861,7.91304752,2594.4,2594.3,0.00577456]
[1748567382356,1.8151,2594.4,2594.3,0.00577456]
[1748567382559,0.24494406,2594.4,2594.3,0.00577456]
[1748567383358,1.94774406,2594.4,2594.3,0.00577456]
[1748567383658,6.94774406,2594.4,2594.3,0.00577456]
[1748567384850,1.94774406,2594.4,2594.3,0.00577456]
[1748567385055,6.94774406,2594.4,2594.3,0.00577456]
[1748567385256,6.94774406,2594.4,2593.6,3.2078]
[1748567385457,0.05264406,2594.0,2593.6,3.2078]